fUSD/lending_fUSD_20241221
["ID","MTS","AMOUNT","RATE_DAILY","PERIOD"]
[346156453,1734759054860,-5569.07,0.00021872,2]
[346156454,1734759054870,-507.49800966,0.00021872,2]
[346156455,1734759054879,-500.0,0.00021872,2]
[346156456,1734759054889,-500.0,0.00021872,2]
[346156457,1734759054898,-500.0,0.00021872,2]
[346156458,1734759054908,-504.89528395,0.00021872,2]
[346156459,1734759054918,-500.0,0.00021872,2]
[346156460,1734759054927,-500.0,0.00021872,2]
[346156461,1734759054937,-580.05,0.00021872,2]
[346156462,1734759054947,-500.0,0.00021872,2]
[346156463,1734759054957,-511.78967495,0.00021872,2]
[346156464,1734759054966,-644.61,0.00021872,2]
[346156465,1734759054976,-500.0,0.00021872,2]
[346156466,1734759054985,-500.0,0.00021872,2]
[346156467,1734759054995,-500.0,0.00021872,2]
[346156468,1734759055004,-567.86,0.00021872,2]
[346156469,1734759055014,-500.0,0.00021872,2]
[346156470,1734759055023,-3664.83,0.00021872,2]
[346156471,1734759055032,-500.0,0.00021872,2]
[346156472,1734759055042,-500.0,0.00021872,2]
[346156473,1734759055052,-500.0,0.00021872,2]
[346156474,1734759055062,-500.0,0.00021872,2]
[346156475,1734759055071,-500.0,0.00021872,2]
[346156476,1734759055081,-500.0,0.00021872,2]
[346156477,1734759055090,-500.0,0.00021872,2]
[346156478,1734759055100,-500.0,0.00021872,2]
[346156479,1734759055110,-506.68471704,0.00021872,2]
[346156480,1734759055120,-779.07,0.00021872,2]
[346156481,1734759055129,-500.0,0.00021872,2]
[346156482,1734759055139,-500.0,0.00021872,2]
[346156483,1734759055149,-500.0,0.00021872,2]
[346156484,1734759055159,-500.0,0.00021872,2]
[346156485,1734759055168,-500.0,0.00021872,2]
[346156486,1734759055178,-500.0,0.00021872,2]
[346156487,1734759055187,-500.0,0.00021872,2]
[346156488,1734759055197,-500.0,0.00021872,2]
[346156489,1734759055206,-514.84,0.00021872,2]
[346156490,1734759055215,-500.0,0.00021872,2]
[346156491,1734759055225,-500.0,0.00021872,2]
[346156492,1734759055234,-500.0,0.00021872,2]
[346156493,1734759055243,-500.0,0.00021872,2]
[346156494,1734759055253,-500.0,0.00021872,2]
[346156495,1734759055262,-500.0,0.00021872,2]
[346156496,1734759055272,-500.0,0.00021872,2]
[346156497,1734759055282,-500.0,0.00021872,2]
[346156498,1734759055292,-500.0,0.00021872,2]
[346156499,1734759055303,-500.0,0.00021872,2]
[346156500,1734759055313,-500.0,0.00021872,2]
[346156501,1734759055322,-500.0,0.00021872,2]
[346156502,1734759055332,-500.0,0.00021872,2]
[346156503,1734759055341,-500.0,0.00021872,2]
[346156504,1734759055351,-1022.05,0.00021872,2]
[346156505,1734759055360,-500.0,0.00021872,2]
[346156506,1734759055369,-500.0,0.00021872,2]
[346156507,1734759055379,-500.0,0.00021872,2]
[346156508,1734759055388,-500.0,0.00021872,2]
[346156509,1734759055397,-514.21230817,0.00021872,2]
[346156510,1734759055406,-500.0,0.00021872,2]
[346156511,1734759055416,-550.64,0.00021872,2]
[346156512,1734759055426,-597.67299024,0.00021872,2]
[346156513,1734759055435,-500.0,0.00021872,2]
[346156514,1734759055444,-500.0,0.00021872,2]
[346156515,1734759055453,-500.0,0.00021872,2]
[346156516,1734759055462,-500.0,0.00021872,2]
[346156517,1734759055471,-500.0,0.00021872,2]
[346156518,1734759055480,-500.0,0.00021872,2]
[346156519,1734759055490,-500.0,0.00021872,2]
[346156520,1734759055500,-500.0,0.00021872,2]
[346156521,1734759055510,-500.0,0.00021872,2]
[346156522,1734759055519,-500.0,0.00021872,2]
[346156523,1734759055529,-500.0,0.00021872,2]
[346156524,1734759055538,-500.0,0.00021872,2]
[346156525,1734759055548,-500.0,0.00021872,2]
[346156526,1734759055558,-500.0,0.00021872,2]
[346156527,1734759055567,-500.0,0.00021872,2]
[346156528,1734759055577,-500.0,0.00021872,2]
[346156529,1734759055587,-500.0,0.00021872,2]
[346156530,1734759055596,-500.0,0.00021872,2]
[346156531,1734759055606,-500.0,0.00021872,2]
[346156532,1734759055615,-503.04381615,0.00021872,2]
[346156533,1734759055625,-500.0,0.00021872,2]
[346156534,1734759055635,-500.0,0.00021872,2]
[346156535,1734759055644,-500.0,0.00021872,2]
[346156536,1734759055654,-500.0,0.00021872,2]
[346156537,1734759055664,-500.0,0.00021872,2]
[346156538,1734759055673,-500.0,0.00021872,2]
[346156539,1734759055683,-402.37160532,0.00021872,2]
[346156540,1734759055693,-500.0,0.00021872,2]
[346156541,1734759055702,-500.0,0.00021873,2]
[346156542,1734759055712,-238.21,0.0002189,2]
[346156543,1734759055722,-4098.352,0.0002189,2]
[346156544,1734759055731,-637.36,0.00021898,2]
[346156545,1734759055740,-637.36,0.00021898,2]
[346156546,1734759055749,-637.36,0.00021898,2]
[346156547,1734759055759,-637.36,0.00021898,2]
[346156548,1734759055773,-637.37304822,0.00021898,2]
[346156549,1734759055782,-1495.78,0.00021898,2]
[346156550,1734759055792,-500.0,0.00021899,2]
[346156551,1734759055803,-500.0,0.00021899,2]
[346156552,1734759055814,-500.0,0.00021899,2]
[346156553,1734759055823,-500.0,0.00021899,2]
[346156554,1734759055957,-500.0,0.00021899,2]
[346156555,1734759055967,-697.84,0.00021899,2]
[346156556,1734759055977,-500.0,0.00021899,2]
[346156557,1734759055987,-500.0,0.00021899,2]
[346156558,1734759055996,-323.36557809,0.00021899,2]
[346156559,1734759056005,-1002.39,0.00021899,2]
[346156560,1734759056015,-529.95174528,0.00021899,2]
[346156561,1734759056024,-712.76,0.00021899,2]
[346156562,1734759056034,-500.0,0.00021899,2]
[346156563,1734759056043,-840.12,0.00021899,2]
[346156564,1734759056053,-970.43,0.00021899,2]
[346156565,1734759056062,-1519.74,0.00021899,2]
[346156566,1734759056072,-500.0,0.00021899,2]
[346156567,1734759056081,-615.74,0.00021899,2]
[346156568,1734759056091,-500.0,0.00021899,2]
[346156569,1734759056101,-556.24,0.00021899,2]
[346156570,1734759056110,-500.0,0.00021899,2]
[346156571,1734759056120,-500.0,0.00021899,2]
[346156572,1734759056129,-1016.17,0.00021899,2]
[346156573,1734759056138,-500.0,0.00021899,2]
[346156574,1734759056148,-500.0,0.00021899,2]
[346156575,1734759056157,-500.0,0.00021899,2]
[346156576,1734759056167,-575.14,0.00021899,2]
[346156577,1734759056176,-500.0,0.00021899,2]
[346156578,1734759056186,-500.0,0.00021899,2]
[346156579,1734759056196,-1607123.07468346,0.000219,2]
[346156580,1734759056207,-159.52,0.000219,2]
[346156581,1734759056216,-1000.0,0.000219,2]
[346156582,1734759056226,-500.0,0.00021917,2]
[346156583,1734759056235,-500.0,0.00021917,2]
[346156584,1734759056245,-500.0,0.00021917,2]
[346156585,1734759056256,-1000.0,0.00021917,2]
[346156586,1734759056266,-4150.47,0.00021917,2]
[346156587,1734759056275,-4150.47,0.00021917,2]
[346156588,1734759056284,-936.07,0.00021917,2]
[346156589,1734759056293,-936.07,0.00021917,2]
[346156590,1734759056304,-150.0,0.00021931,4]
[346156591,1734759056314,-500.0,0.00021967,2]
[346156592,1734759056325,-500.0,0.00021967,2]
[346156593,1734759056335,-500.0,0.00021967,2]
[346156594,1734759056346,-500.0,0.00021967,2]
[346156595,1734759056355,-3514.8941155,0.0002197,2]
[346156596,1734759056365,-961.05,0.00021971,2]
[346156597,1734759056375,-2445.16,0.00021971,2]
[346156598,1734759056385,-9345.14,0.00021971,2]
[346156599,1734759056395,-955.73,0.00021971,2]
[346156600,1734759056404,-1891.22,0.00021971,2]
[346156601,1734759056413,-2361.06,0.00021971,2]
[346156602,1734759056423,-1452.04,0.00021971,2]
[346156603,1734759056431,-500.0,0.00021971,2]
[346156604,1734759056440,-500.0,0.00021971,2]
[346156605,1734759056449,-715.27,0.00021971,2]
[346156606,1734759056459,-1657.67,0.00021971,2]
[346156607,1734759056468,-3634.48,0.00021971,2]
[346156608,1734759056476,-1205.96,0.00021971,2]
[346156609,1734759056485,-4163.62,0.00021971,2]
[346156610,1734759056494,-1474.51,0.00021971,2]
[346156611,1734759056503,-162.58,0.00021972,2]
[346156612,1734759056511,-162.58,0.00021972,2]
[346156613,1734759056520,-162.58,0.00021972,2]
[346156614,1734759056529,-162.58,0.00021972,2]
[346156615,1734759056539,-162.58,0.00021972,2]
[346156616,1734759056548,-162.58,0.00021972,2]
[346156617,1734759056559,-162.58,0.00021972,2]
[346156618,1734759056569,-162.58,0.00021972,2]
[346156619,1734759056579,-162.59,0.00021972,2]
[346156620,1734759056588,-162.59,0.00021972,2]
[346156621,1734759056597,-500.0,0.00021972,2]
[346156622,1734759056607,-1266.08,0.00021972,2]
[346156623,1734759056617,-500.0,0.00021972,2]
[346156624,1734759056627,-571.24,0.00021972,2]
[346156625,1734759056637,-1341.15,0.00021972,2]
[346156626,1734759056646,-1202.85,0.00021972,2]
[346156627,1734759056655,-924.06,0.00021972,2]
[346156628,1734759056665,-500.0,0.00021972,2]
[346156629,1734759056675,-562.11,0.00021972,2]
[346156630,1734759056684,-500.0,0.00021972,2]
[346156631,1734759056693,-754.56,0.00021972,2]
[346156632,1734759056703,-500.0,0.00021972,2]
[346156633,1734759056713,-841.4,0.00021972,2]
[346156634,1734759056722,-924.14,0.00021972,2]
[346156635,1734759056731,-1008.36,0.00021972,2]
[346156636,1734759056740,-500.0,0.00021972,2]
[346156637,1734759056749,-500.0,0.00021972,2]
[346156638,1734759056758,-886.63,0.00021972,2]
[346156639,1734759056780,-1000.0,0.00021972,30]
[346156640,1734759056798,-1040.83,0.00021972,2]
[346156641,1734759056818,-500.0,0.00021972,2]
[346156642,1734759056836,-733.61,0.00021972,2]
[346156643,1734759056853,-500.0,0.00021972,2]
[346156644,1734759056871,-1365.79,0.00021972,2]
[346156645,1734759056889,-500.0,0.00021972,2]
[346156646,1734759056908,-500.0,0.00021972,2]
[346156647,1734759056926,-691.04,0.00021972,2]
[346156648,1734759056944,-977.6,0.00021972,2]
[346156649,1734759056958,-989.17,0.00021972,2]
[346156650,1734759056978,-559.12,0.00021972,2]
[346156651,1734759056991,-500.0,0.00021972,2]
[346156652,1734759057009,-1327.88,0.00021972,2]
[346156653,1734759057022,-523.95,0.00021972,2]
[346156654,1734759057039,-308.28275337,0.00021972,2]
[346156655,1734759057054,-788.0,0.00021972,2]
[346156656,1734759057069,-825.4,0.00021972,2]
[346156657,1734759057085,-1096.69,0.00021972,2]
[346156658,1734759057100,-911.12,0.00021972,2]
[346156659,1734759057115,-234.78109536,0.00021972,2]
[346156660,1734759057131,-1262.28,0.00021972,2]
[346156661,1734759057146,-1495.78,0.00021972,2]
[346156662,1734759057161,-657.59,0.00021972,2]
[346156663,1734759057176,-1495.78,0.00021972,2]
[346156664,1734759057192,-1395.49,0.00021972,2]
[346156665,1734759057208,-815.78,0.00021972,2]
[346156666,1734759057224,-1112.89,0.00021972,2]
[346156667,1734759057239,-999.14,0.00021972,2]
[346156668,1734759057255,-1176.68,0.00021972,2]
[346156669,1734759057270,-995.98,0.00021972,2]
[346156670,1734759057289,-500.0,0.00021972,2]
[346156671,1734759057307,-1026.95,0.00021972,2]
[346156672,1734759057321,-500.0,0.00021972,2]
[346156673,1734759057336,-526.19,0.00021972,2]
[346156674,1734759057350,-500.0,0.00021972,2]
[346156675,1734759057364,-500.0,0.00021972,2]
[346156676,1734759057379,-918.11,0.00021972,2]
[346156677,1734759057395,-500.0,0.00021972,2]
[346156678,1734759057411,-591.24,0.00021972,2]
[346156679,1734759057427,-500.0,0.00021972,2]
[346156680,1734759057442,-502.08,0.00021972,2]
[346156681,1734759057456,-500.0,0.00021972,2]
[346156682,1734759057470,-752.3,0.00021972,2]
[346156683,1734759057484,-863.63,0.00021972,2]
[346156684,1734759057499,-1327.4,0.00021972,2]
[346156685,1734759057514,-500.0,0.00021972,2]
[346156686,1734759057529,-500.0,0.00021972,2]
[346156687,1734759057544,-500.0,0.00021972,2]
[346156688,1734759057560,-591.97,0.00021972,2]
[346156689,1734759057576,-500.0,0.00021972,2]
[346156690,1734759057591,-500.0,0.00021972,2]
[346156691,1734759057606,-500.0,0.00021972,2]
[346156692,1734759057622,-500.0,0.00021972,2]
[346156693,1734759057637,-500.0,0.00021972,2]
[346156694,1734759057653,-1144.41,0.00021972,2]
[346156695,1734759057668,-896.93,0.00021972,2]
[346156696,1734759057685,-500.0,0.00021972,2]
[346156697,1734759057700,-1194.17,0.00021972,2]
[346156698,1734759057715,-949.52,0.00021972,2]
[346156699,1734759057730,-1040.88,0.00021972,2]
[346156700,1734759057745,-500.71,0.00021972,2]
[346156701,1734759057760,-1194.89,0.00021972,2]
[346156702,1734759057779,-304.79,0.00021973,2]
[346156703,1734759057794,-500.0,0.00021973,2]
[346156704,1734759057812,-500.0,0.00021973,2]
[346156705,1734759057827,-500.0,0.00021973,2]
[346156706,1734759057843,-359.85213615,0.00021973,2]
[346156707,1734759057859,-510.70452663,0.00021973,2]
[346156708,1734759057875,-500.0,0.00021973,2]
[346156709,1734759057890,-231.57560712,0.00021973,2]
[346156710,1734759057904,-222.60717736,0.00021973,2]
[346156711,1734759057919,-500.0,0.00021973,2]
[346156712,1734759057934,-500.0,0.00021973,2]
[346156713,1734759057949,-500.0,0.00021973,2]
[346156714,1734759057964,-500.0,0.00021973,2]
[346156715,1734759057979,-224.74390587,0.00021973,2]
[346156716,1734759057994,-507.25108371,0.00021973,2]
[346156717,1734759058009,-500.0,0.00021973,2]
[346156718,1734759058024,-255.74382755,0.00021973,2]
[346156719,1734759058039,-500.0,0.00021973,2]
[346156720,1734759058054,-500.0,0.00021973,2]
[346156721,1734759058229,-500.0,0.00021973,2]
[346156722,1734759058239,-562.46750296,0.00021973,2]
[346156723,1734759058248,-500.0,0.00021973,2]
[346156724,1734759058258,-500.0,0.00021973,2]
[346156725,1734759058267,-500.0,0.00021973,2]
[346156726,1734759058277,-300.0,0.00021973,2]
[346156727,1734759058287,-500.0,0.00021973,2]
[346156728,1734759058296,-500.0,0.00021973,2]
[346156729,1734759058307,-2000.0,0.00021973,2]
[346156730,1734759058316,-500.0,0.00021973,2]
[346156731,1734759058325,-200.0,0.00021973,2]
[346156732,1734759058336,-507.52906392,0.00021973,2]
[346156733,1734759058345,-500.0,0.00021973,2]
[346156734,1734759058354,-500.0,0.00021973,2]
[346156735,1734759058364,-500.0,0.00021973,2]
[346156736,1734759058373,-500.0,0.00021973,2]
[346156737,1734759058383,-1041.83,0.00021973,2]
[346156738,1734759058392,-500.0,0.00021973,2]
[346156739,1734759058402,-505.43634083,0.00021973,2]
[346156740,1734759058411,-500.0,0.00021973,2]
[346156741,1734759058421,-502.50979442,0.00021973,2]
[346156742,1734759058430,-500.0,0.00021973,2]
[346156743,1734759058440,-500.0,0.00021973,2]
[346156744,1734759058449,-500.0,0.00021973,2]
[346156745,1734759058459,-500.0,0.00021973,2]
[346156746,1734759058469,-500.0,0.00021973,2]
[346156747,1734759058478,-500.0,0.00021973,2]
[346156748,1734759058488,-601.64,0.00021973,2]
[346156749,1734759058498,-500.0,0.00021973,2]
[346156750,1734759058507,-500.0,0.00021973,2]
[346156751,1734759058517,-523.17507381,0.00021973,2]
[346156752,1734759058527,-500.0,0.00021973,2]
[346156753,1734759058536,-500.0,0.00021973,2]
[346156754,1734759058546,-500.0,0.00021973,2]
[346156755,1734759058555,-500.0,0.00021973,2]
[346156756,1734759058564,-583.29,0.00021973,2]
[346156757,1734759058574,-500.0,0.00021973,2]
[346156758,1734759058583,-500.0,0.00021973,2]
[346156759,1734759058593,-504.69777526,0.00021973,2]
[346156760,1734759058602,-500.0,0.00021973,2]
[346156761,1734759058611,-500.0,0.00021973,2]
[346156762,1734759058621,-500.0,0.00021973,2]
[346156763,1734759058630,-508.35740546,0.00021973,2]
[346156764,1734759058640,-500.0,0.00021973,2]
[346156765,1734759058649,-500.0,0.00021973,2]
[346156766,1734759058658,-500.0,0.00021973,2]
[346156767,1734759058668,-500.0,0.00021973,2]
[346156768,1734759058678,-526.09,0.00021973,2]
[346156769,1734759058688,-500.0,0.00021973,2]
[346156770,1734759058698,-500.0,0.00021973,2]
[346156771,1734759058708,-500.0,0.00021973,2]
[346156772,1734759058717,-500.0,0.00021973,2]
[346156773,1734759058727,-251.4114903,0.00021973,2]
[346156774,1734759058736,-500.0,0.00021973,2]
[346156775,1734759058747,-500.0,0.00021973,2]
[346156776,1734759058757,-606.13413441,0.00021973,2]
[346156777,1734759058769,-505.01,0.00021973,2]
[346156778,1734759058778,-500.0,0.00021973,2]
[346156779,1734759058787,-192.24294127,0.00021973,2]
[346156780,1734759058797,-500.0,0.00021973,2]
[346156781,1734759058808,-500.0,0.00021973,2]
[346156782,1734759058817,-615.3,0.00021973,2]
[346156783,1734759058827,-500.0,0.00021973,2]
[346156784,1734759058838,-500.0,0.00021973,2]
[346156785,1734759058848,-500.0,0.00021973,2]
[346156786,1734759058858,-500.0,0.00021973,2]
[346156787,1734759058867,-500.0,0.00021973,2]
[346156788,1734759058876,-500.0,0.00021973,2]
[346156789,1734759058886,-500.0,0.00021973,2]
[346156790,1734759058895,-500.0,0.00021973,2]
[346156791,1734759058904,-500.0,0.00021973,2]
[346156792,1734759058913,-500.0,0.00021973,2]
[346156793,1734759058922,-500.0,0.00021973,2]
[346156794,1734759058932,-500.0,0.00021973,2]
[346156795,1734759058941,-157.81693713,0.00021973,2]
[346156796,1734759058950,-500.0,0.00021973,2]
[346156797,1734759058958,-500.0,0.00021973,2]
[346156798,1734759058967,-504.22121051,0.00021973,2]
[346156799,1734759058976,-500.0,0.00021973,2]
[346156800,1734759058984,-521.19,0.00021973,2]
[346156801,1734759058993,-500.0,0.00021973,2]
[346156802,1734759059002,-500.0,0.00021973,2]
[346156803,1734759059011,-524.7,0.00021973,2]
[346156804,1734759059019,-500.0,0.00021973,2]
[346156805,1734759059028,-500.0,0.00021973,2]
[346156806,1734759059038,-500.0,0.00021973,2]
[346156807,1734759059046,-639.26305198,0.00021973,2]
[346156808,1734759059055,-635.15,0.00021973,2]
[346156809,1734759059064,-500.0,0.00021973,2]
[346156810,1734759059073,-500.0,0.00021973,2]
[346156811,1734759059081,-503.60107892,0.00021973,2]
[346156812,1734759059090,-500.0,0.00021973,2]
[346156813,1734759059099,-500.0,0.00021973,2]
[346156814,1734759059108,-432.15258782,0.00021973,2]
[346156815,1734759059116,-500.0,0.00021973,2]
[346156816,1734759059125,-899.32,0.00021973,2]
[346156817,1734759059135,-500.0,0.00021973,2]
[346156818,1734759059143,-500.0,0.00021973,2]
[346156819,1734759059152,-567.94,0.00021973,2]
[346156820,1734759059161,-549.62,0.00021973,2]
[346156821,1734759059170,-2000.0,0.00021973,2]
[346156822,1734759059179,-500.0,0.00021973,2]
[346156823,1734759059188,-506.10517191,0.00021973,2]
[346156824,1734759059196,-200.0,0.00021973,2]
[346156825,1734759059205,-607.68,0.00021973,2]
[346156826,1734759059214,-500.0,0.00021973,2]
[346156827,1734759059222,-565.33,0.00021973,2]
[346156828,1734759059232,-500.0,0.00021973,2]
[346156829,1734759059242,-500.0,0.00021973,2]
[346156830,1734759059251,-572.14,0.00021973,2]
[346156831,1734759059260,-500.0,0.00021973,2]
[346156832,1734759059270,-502.14493748,0.00021973,2]
[346156833,1734759059279,-1066.61,0.00021973,2]
[346156834,1734759059288,-505.5797499,0.00021973,2]
[346156835,1734759059298,-937.62,0.00021973,2]
[346156836,1734759059307,-540.39,0.00021973,2]
[346156837,1734759059316,-500.0,0.00021973,2]
[346156838,1734759059325,-500.0,0.00021973,2]
[346156839,1734759059336,-500.0,0.00021973,2]
[346156840,1734759059345,-500.0,0.00021973,2]
[346156841,1734759059354,-500.0,0.00021973,2]
[346156842,1734759059364,-197.18201223,0.00021973,2]
[346156843,1734759059374,-500.0,0.00021973,2]
[346156844,1734759059384,-500.0,0.00021973,2]
[346156845,1734759059393,-500.0,0.00021973,2]
[346156846,1734759059402,-500.0,0.00021973,2]
[346156847,1734759059411,-500.0,0.00021973,2]
[346156848,1734759059420,-500.0,0.00021973,2]
[346156849,1734759059429,-576.26846947,0.00021973,2]
[346156850,1734759059437,-500.0,0.00021973,2]
[346156851,1734759059447,-500.0,0.00021973,2]
[346156852,1734759059456,-500.0,0.00021973,2]
[346156853,1734759059464,-500.0,0.00021973,2]
[346156854,1734759059473,-500.0,0.00021973,2]
[346156855,1734759059483,-1041.16,0.00021973,2]
[346156856,1734759059492,-502.9932311,0.00021973,2]
[346156857,1734759059501,-500.0,0.00021973,2]
[346156858,1734759059510,-500.0,0.00021973,2]
[346156859,1734759059519,-500.0,0.00021973,2]
[346156860,1734759059528,-500.0,0.00021973,2]
[346156861,1734759059538,-500.0,0.00021973,2]
[346156862,1734759059547,-804.28,0.00021973,2]
[346156863,1734759059556,-616.06,0.00021973,2]
[346156864,1734759059566,-505.63507947,0.00021973,2]
[346156865,1734759059575,-500.0,0.00021973,2]
[346156866,1734759059584,-500.0,0.00021973,2]
[346156867,1734759059594,-856.75,0.00021973,2]
[346156868,1734759059604,-500.0,0.00021973,2]
[346156869,1734759059614,-500.0,0.00021973,2]
[346156870,1734759059623,-500.0,0.00021973,2]
[346156871,1734759059633,-500.0,0.00021973,2]
[346156872,1734759059643,-527.12092261,0.00021973,2]
[346156873,1734759059652,-792.54,0.00021973,2]
[346156874,1734759059661,-519.6306687,0.00021973,2]
[346156875,1734759059671,-500.0,0.00021973,2]
[346156876,1734759059680,-500.0,0.00021973,2]
[346156877,1734759059690,-500.0,0.00021973,2]
[346156878,1734759059699,-500.0,0.00021973,2]
[346156879,1734759059708,-500.0,0.00021973,2]
[346156880,1734759059718,-500.0,0.00021973,2]
[346156881,1734759059728,-500.0,0.00021973,2]
[346156882,1734759059737,-500.0,0.00021973,2]
[346156883,1734759059746,-500.0,0.00021973,2]
[346156884,1734759059756,-845.99,0.00021973,2]
[346156885,1734759059769,-747.13,0.00021973,2]
[346156886,1734759059778,-500.0,0.00021973,2]
[346156887,1734759059788,-567.45,0.00021973,2]
[346156888,1734759059797,-849.25,0.00021973,2]
[346156889,1734759059807,-500.0,0.00021973,2]
[346156890,1734759059816,-500.0,0.00021973,2]
[346156891,1734759059825,-1042.88,0.00021973,2]
[346156892,1734759059835,-500.0,0.00021973,2]
[346156893,1734759059846,-618.02,0.00021973,2]
[346156894,1734759059856,-616.43,0.00021973,2]
[346156895,1734759059865,-519.54699318,0.00021973,2]
[346156896,1734759059875,-500.0,0.00021973,2]
[346156897,1734759059884,-500.0,0.00021973,2]
[346156898,1734759059895,-817.88,0.00021973,2]
[346156899,1734759059905,-500.0,0.00021973,2]
[346156900,1734759059914,-500.0,0.00021973,2]
[346156901,1734759059923,-500.0,0.00021973,2]
[346156902,1734759059933,-500.0,0.00021973,2]
[346156903,1734759059942,-866.83,0.00021973,2]
[346156904,1734759059951,-500.0,0.00021973,2]
[346156905,1734759059960,-500.0,0.00021973,2]
[346156906,1734759060090,-500.0,0.00021973,2]
[346156907,1734759060099,-500.0,0.00021973,2]
[346156908,1734759060108,-1358.5,0.00021973,2]
[346156909,1734759060118,-500.0,0.00021973,2]
[346156910,1734759060127,-500.0,0.00021973,2]
[346156911,1734759060137,-500.0,0.00021973,2]
[346156912,1734759060146,-516.58166313,0.00021973,2]
[346156913,1734759060155,-500.0,0.00021973,2]
[346156914,1734759060163,-500.0,0.00021973,2]
[346156915,1734759060173,-500.0,0.00021973,2]
[346156916,1734759060182,-500.0,0.00021973,2]
[346156917,1734759060191,-795.64,0.00021973,2]
[346156918,1734759060201,-500.0,0.00021973,2]
[346156919,1734759060210,-500.0,0.00021973,2]
[346156920,1734759060220,-804.57,0.00021973,2]
[346156921,1734759060229,-500.0,0.00021973,2]
[346156922,1734759060239,-500.0,0.00021973,2]
[346156923,1734759060249,-500.0,0.00021973,2]
[346156924,1734759060258,-553.39630028,0.00021973,2]
[346156925,1734759060267,-506.9375373,0.00021973,2]
[346156926,1734759060276,-500.0,0.00021973,2]
[346156927,1734759060286,-500.0,0.00021973,2]
[346156928,1734759060295,-500.0,0.00021973,2]
[346156929,1734759060304,-496.47848343,0.00021973,2]
[346156930,1734759060315,-500.0,0.00021973,2]
[346156931,1734759060324,-849.07,0.00021973,2]
[346156932,1734759060333,-2000.0,0.00021973,2]
[346156933,1734759060343,-500.0,0.00021973,2]
[346156934,1734759060352,-200.0,0.00021973,2]
[346156935,1734759060362,-500.0,0.00021973,2]
[346156936,1734759060372,-500.0,0.00021973,2]
[346156937,1734759060381,-500.0,0.00021973,2]
[346156938,1734759060390,-500.0,0.00021973,2]
[346156939,1734759060399,-500.0,0.00021973,2]
[346156940,1734759060409,-663.79,0.00021973,2]
[346156941,1734759060418,-500.0,0.00021973,2]
[346156942,1734759060428,-500.0,0.00021973,2]
[346156943,1734759060437,-500.0,0.00021973,2]
[346156944,1734759060447,-500.0,0.00021973,2]
[346156945,1734759060456,-500.0,0.00021973,2]
[346156946,1734759060466,-500.0,0.00021973,2]
[346156947,1734759060475,-500.0,0.00021973,2]
[346156948,1734759060484,-1000.0,0.00021973,2]
[346156949,1734759060494,-508.08635487,0.00021973,2]
[346156950,1734759060503,-810.18,0.00021973,2]
[346156951,1734759060513,-500.0,0.00021973,2]
[346156952,1734759060522,-500.0,0.00021973,2]